Workbook

Sheet stock
A1: Material | B1: StockQty | C1: DemandQty | D1: Delta | F1: show | G1: 2years | I1: today | J1: =TODAY() -> 2017-05-11
A2: 111 | B2: 3000 | C2: =SUMIF(demand!$A$3:$A$41,stock!A2,demand!D3:$D$41) -> 4472.083333 | D2: =B2-C2 -> -1472.083333
A3: 222 | B3: 1000 | C3: =SUMIF(demand!$A$3:$A$41,stock!A3,demand!D4:$D$41) -> 602 | D3: =B3-C3 -> 398
A4: 333 | B4: 1500 | C4: =SUMIF(demand!$A$3:$A$41,stock!A4,demand!D5:$D$41) -> 329 | D4: 1171
A5: 444 | B5: 10 | C5: =SUMIF(demand!$A$3:$A$41,stock!A5,demand!D6:$D$41) -> 0 | D5: 10
A6: 555 | B6: 200 | C6: =SUMIF(demand!$A$3:$A$41,stock!A6,demand!D7:$D$41) -> 0 | D6: 200

Sheet demand
A1: Material | B1: Plant | C1: Name | D1: Demand | E1: StartDate | F1: Duration | G1: EndDate | H1: ConsumptionPerDay | I1: DemandToDate | J1: DemandToDateCumulative | K1: DaysTillOutOfStock | L1: QtyRequired | M1: StockEndDate | N1: Duration2 | O1: StockExceededLine | P1: RunOutOfStockOn | Q1: RunOutOfStockInDays
A2: 111 | B2: * | C2: stock | D2: 3000 | E2: =TODAY() -> 2017-05-11 | F2: 79 | G2: =E2+F2 -> 2017-07-29 | J2: =SUBTOTAL(4,J3:J47) -> 4045.75 | K2: 0 | L2: =J2-D2 -> 1045.75 | M2: =E2+F2 -> 2017-07-29 | N2: =SUBTOTAL(4,G3:G47)-M2 -> 221
A3: 111 | B3: Plant1 | C3: unknown | D3: 330 | E3: 2017-01-01 | F3: 100 | G3: =E3+F3 -> 2017-04-11 | H3: =D3/F3 -> 3.3 | I3: =IF(E3>TODAY(),D3,IF((((E3+F3-TODAY())/F3)*D3)<0,0,((E3+F3-TODAY())/F3)*D3)) -> 0 | J3: =I3 -> 0 | K3: =ROUNDUP((J3-$D$2)/H3,0) -> -910 | O3: =IF(J3>$D$2,E3,0) -> 00:00:00 | P3: =O3-K3 -> 1902-06-28 | Q3: =P3-$E$2 -> -41956
A4: 111 | B4: Plant1 | C4: A-03 | D4: 328.75 | E4: =TODAY()+1 -> 2017-05-12 | F4: 10 | G4: 2017-05-22 | H4: 32.875 | I4: 328.75 | J4: =IF(A4=A3,I4+J3,I4) -> 328.75 | K4: -82 | O4: 00:00:00 | P4: 1900-03-22 | Q4: -42784
A5: 111 | B5: Plant2 | C5: A-01 | D5: 285.4166667 | E5: 2017-05-12 | F5: 10 | G5: 2017-05-22 | H5: 28.54166667 | I5: 285.4166667 | J5: =IF(A5=A4,I5+J4,I5) -> 614.1666667 | K5: -84 | O5: 00:00:00 | P5: 1900-03-24 | Q5: -42782
A6: 111 | B6: Plant2 | C6: A-06 | D6: 462.0833333 | E6: 2017-05-12 | F6: 10 | G6: 2017-05-22 | H6: 46.20833333 | I6: 462.0833333 | J6: 1076.25 | K6: -42 | O6: 00:00:00 | P6: 1900-02-11 | Q6: -42824
A7: 111 | B7: Plant2 | C7: ABC-12 | D7: 316.6666667 | E7: 2017-05-12 | F7: 10 | G7: 2017-05-22 | H7: 31.66666667 | I7: 316.6666667 | J7: 1392.916667 | K7: -51 | O7: 00:00:00 | P7: 1900-02-20 | Q7: -42815
A8: 111 | B8: Plant2 | C8: ABC-15 | D8: 378.3333333 | E8: 2017-05-12 | F8: 10 | G8: 2017-05-22 | H8: 37.83333333 | I8: 378.3333333 | J8: 1771.25 | K8: -33 | O8: 00:00:00 | P8: 1900-02-02 | Q8: -42833
A9: 111 | B9: Plant2 | C9: ZXY-01 | D9: 266.6666667 | E9: 2017-05-12 | F9: 10 | G9: 2017-05-22 | H9: 26.66666667 | I9: 266.6666667 | J9: 2037.916667 | K9: -37 | O9: 00:00:00 | P9: 1900-02-06 | Q9: -42829
A10: 111 | B10: Plant2 | C10: B-01 | D10: 356.25 | E10: 2017-05-18 | F10: 54 | G10: 2017-07-11 | H10: 6.597222222 | I10: 356.25 | J10: 2394.166667 | K10: -92 | O10: 00:00:00 | P10: 1900-04-01 | Q10: -42774
A11: 111 | B11: Plant2 | C11: A-02 | D11: 283.3333333 | E11: 2017-04-07 | F11: 100 | G11: 2017-07-16 | H11: 2.833333333 | I11: 187 | J11: 2581.166667 | K11: -148 | O11: 00:00:00 | P11: 1900-05-27 | Q11: -42718
A12: 111 | B12: Plant1 | C12: CCC-2 | D12: 56.25 | E12: 2017-07-11 | F12: 21 | G12: 2017-08-01 | H12: 2.678571429 | I12: 56.25 | J12: 2637.416667 | K12: -136 | O12: 00:00:00 | P12: 1900-05-15 | Q12: -42730
A13: 111 | B13: Plant2 | C13: ABC-14 | D13: 375 | E13: 2017-08-01 | F13: 64 | G13: 2017-10-04 | H13: 5.859375 | I13: 375 | J13: 3012.416667 | K13: 3 | O13: 2017-08-01 | P13: 2017-07-29 | Q13: =P13-$E$2 -> 79
A14: 111 | B14: Plant2 | C14: ABC-16 | D14: 404.1666667 | E14: 2017-10-17 | F14: 69 | G14: 2017-12-25 | H14: 5.857487923 | I14: 404.1666667 | J14: 3416.583333 | K14: 72 | O14: 2017-10-17 | P14: 2017-08-06 | Q14: =P14-$E$2 -> 87
A15: 111 | B15: Plant2 | C15: unknown | D15: 300 | E15: 2017-08-01 | F15: 150 | G15: 2017-12-29 | H15: 2 | I15: 300 | J15: 3716.583333 | K15: 359 | O15: 2017-08-01 | P15: 2016-08-07 | Q15: -277
A16: 111 | B16: Plant1 | C16: A-04 | D16: 329.1666667 | E16: 2017-12-25 | F16: 72 | G16: 2018-03-07 | H16: 4.571759259 | I16: 329.1666667 | J16: 4045.75 | K16: 229 | O16: 2017-12-25 | P16: 2017-05-10 | Q16: -1
A17: 222 | B17: Plant2 | C17: A-02 | D17: 40 | E17: 2017-04-07 | F17: 41 | G17: =E17+F17 -> 2017-05-18 | H17: 0.9756097561 | I17: 6.829268293 | J17: 6.829268293 | K17: -3068 | O17: 00:00:00 | P17: 1908-05-25 | Q17: -39798
A18: 222 | B18: Plant1 | C18: A-06 | D18: 80 | E18: =TODAY()+1 -> 2017-05-12 | F18: 10 | G18: 2017-05-22 | H18: 8 | I18: 80 | J18: 86.82926829 | K18: -365 | O18: 00:00:00 | P18: 1900-12-30 | Q18: -42501
A19: 222 | B19: Plant2 | C19: A-01 | D19: 40 | E19: 2017-05-12 | F19: 10 | G19: 2017-05-22 | H19: 4 | I19: 40 | J19: 126.8292683 | K19: -719 | O19: 00:00:00 | P19: 1901-12-19 | Q19: -42147
A20: 222 | B20: Plant2 | C20: A-03 | D20: 40 | E20: 2017-05-12 | F20: 10 | G20: 2017-05-22 | H20: 4 | I20: 40 | J20: 166.8292683 | K20: -709 | O20: 00:00:00 | P20: 1901-12-09 | Q20: -42157
A21: 222 | B21: Plant2 | C21: ABC-12 | D21: 40 | E21: 2017-05-12 | F21: 10 | G21: 2017-05-22 | H21: 4 | I21: 40 | J21: 206.8292683 | K21: -699 | O21: 00:00:00 | P21: 1901-11-29 | Q21: -42167
A22: 222 | B22: Plant2 | C22: ABC-15 | D22: 80 | E22: 2017-05-12 | F22: 10 | G22: 2017-05-22 | H22: 8 | I22: 80 | J22: 286.8292683 | K22: -340 | O22: 00:00:00 | P22: 1900-12-05 | Q22: -42526
A23: 222 | B23: Plant2 | C23: ZXY-01 | D23: 40 | E23: 2017-05-12 | F23: 10 | G23: 2017-05-22 | H23: 4 | I23: 40 | J23: 326.8292683 | K23: -669 | O23: 00:00:00 | P23: 1901-10-30 | Q23: -42197
A24: 222 | B24: Plant2 | C24: B-01 | D24: 80 | E24: 2017-05-18 | F24: 54 | G24: 2017-07-11 | H24: 1.481481481 | I24: 80 | J24: 406.8292683 | K24: -1751 | O24: 00:00:00 | P24: 1904-10-16 | Q24: -41115
A25: 222 | B25: Plant1 | C25: CCC-2 | D25: 1 | E25: 2017-07-11 | F25: 21 | G25: 2017-08-01 | H25: 0.04761904762 | I25: 1 | J25: 407.8292683 | K25: -54436 | O25: 00:00:00 | P25: 2049-01-13 | Q25: 11570
A26: 222 | B26: Plant1 | C26: ABC-14 | D26: 80 | E26: 2017-08-01 | F26: 64 | G26: 2017-10-04 | H26: 1.25 | I26: 80 | J26: 487.8292683 | K26: -2010 | O26: =IF(J26>$D$2,E26,0) -> 00:00:00 | P26: 1905-07-02 | Q26: -40856
A27: 222 | B27: Plant1 | C27: ABC-16 | D27: 80 | E27: 2017-10-17 | F27: 69 | G27: 2017-12-25 | H27: 1.15942029 | I27: 80 | J27: 567.8292683 | K27: -2098 | O27: 00:00:00 | P27: 1905-09-28 | Q27: -40768
A28: 222 | B28: Plant2 | C28: A-04 | D28: 40 | E28: 2017-12-25 | F28: 72 | G28: 2018-03-07 | H28: 0.5555555556 | I28: 40 | J28: 607.8292683 | K28: -4306 | O28: 00:00:00 | P28: 1911-10-15 | Q28: -38560
A29: 333 | B29: Plant1 | C29: ABC-12 | D29: 1 | E29: =TODAY()+1 -> 2017-05-12 | F29: 10 | G29: 2017-05-22 | H29: 0.1 | I29: =IF(E29>TODAY(),D29,IF((((E29+F29-TODAY())/F29)*D29)<0,0,((E29+F29-TODAY())/F29)*D29)) -> 1 | J29: 1 | K29: -29990 | O29: 00:00:00 | P29: 1982-02-08 | Q29: -12876
A30: 333 | B30: Plant2 | C30: A-01 | D30: 2 | E30: =TODAY()+1 -> 2017-05-12 | F30: 10 | G30: 2017-05-22 | H30: 0.2 | I30: 2 | J30: 3 | K30: -14985 | O30: 00:00:00 | P30: 1941-01-09 | Q30: -27881
A31: 333 | B31: Plant2 | C31: A-03 | D31: 2 | E31: =TODAY()+1 -> 2017-05-12 | F31: 10 | G31: 2017-05-22 | H31: 0.2 | I31: 2 | J31: 5 | K31: -14975 | O31: 00:00:00 | P31: 1940-12-30 | Q31: -27891
A32: 333 | B32: Plant2 | C32: ABC-15 | D32: 2 | E32: =TODAY()+1 -> 2017-05-12 | F32: 10 | G32: 2017-05-22 | H32: 0.2 | I32: 2 | J32: 7 | K32: -14965 | O32: 00:00:00 | P32: 1940-12-20 | Q32: -27901
A33: 333 | B33: Plant2 | C33: ZXY-01 | D33: 8 | E33: =TODAY()+1 -> 2017-05-12 | F33: 10 | G33: 2017-05-22 | H33: 0.8 | I33: 8 | J33: 15 | K33: -3732 | O33: 00:00:00 | P33: 1910-03-20 | Q33: -39134
A34: 333 | B34: Plant2 | C34: CCC-2 | D34: 2 | E34: 2017-07-11 | F34: 21 | G34: 2017-08-01 | H34: 0.09523809524 | I34: 2 | J34: 17 | K34: -31322 | O34: 00:00:00 | P34: 1985-10-02 | Q34: -11544
A35: 333 | B35: Plant1 | C35: ABC-14 | D35: 5 | E35: 2017-08-01 | F35: 64 | G35: 2017-10-04 | H35: 0.078125 | I35: 5 | J35: 22 | K35: -38119 | O35: 00:00:00 | P35: 2004-05-12 | Q35: -4747
A36: 333 | B36: Plant1 | C36: A-02 | D36: 100 | E36: 2017-04-07 | F36: 200 | G36: 2017-10-24 | H36: 0.5 | I36: 83 | J36: 105 | K36: -5790 | O36: 00:00:00 | P36: 1915-11-07 | Q36: -37076
A37: 333 | B37: Plant1 | C37: A-06 | D37: 100 | E37: 2017-04-07 | F37: 200 | G37: 2017-10-24 | H37: 0.5 | I37: 83 | J37: 188 | K37: -5624 | O37: 00:00:00 | P37: 1915-05-25 | Q37: -37242
A38: 333 | B38: Plant2 | C38: ABC-16 | D38: 6 | E38: 2017-10-17 | F38: 69 | G38: 2017-12-25 | H38: 0.08695652174 | I38: 6 | J38: 194 | K38: -32269 | O38: 00:00:00 | P38: 1988-05-06 | Q38: -10597
A39: 333 | B39: Plant2 | C39: A-04 | D39: 2 | E39: 2017-12-25 | F39: 72 | G39: 2018-03-07 | H39: 0.02777777778 | I39: 2 | J39: 196 | K39: -100944 | O39: 00:00:00 | P39: 2176-05-15 | Q39: 58078
A40: 333 | B40: Plant1 | C40: A-06 | D40: 100 | E40: 2017-12-01 | F40: 100 | G40: 2018-03-11 | H40: 1 | I40: 100 | J40: 296 | K40: -2704 | O40: 00:00:00 | P40: 1907-05-27 | Q40: -40162
A41: 333 | B41: Plant2 | C41: B-01 | D41: 2 | E41: 2018-05-18 | F41: 54 | G41: 2018-07-11 | H41: 0.03703703704 | I41: 2 | J41: 298 | K41: -72954 | O41: 00:00:00 | P41: 2099-09-26 | Q41: 30088

Sheet chart
A1: Material | B1: 111
A3: Row Labels | B3: Name | C3: StartDate | D3: Duration | E3: Duration2 | F3: QtyRequired | G3: Sum of Demand
A4: Plant1 | B4: A-03 | C4: 2017-05-12 | D4: 10 | G4: 328.75
B5: A-04 | C5: 2017-12-25 | D5: 72 | G5: 329.1666667
B6: CCC-2 | C6: 2017-07-11 | D6: 21 | G6: 56.25
B7: unknown | C7: 2017-01-01 | D7: 100 | G7: 330
A8: Plant2 | B8: A-01 | C8: 2017-05-12 | D8: 10 | G8: 285.4166667
B9: A-02 | C9: 2017-04-07 | D9: 100 | G9: 283.3333333
B10: A-06 | C10: 2017-05-12 | D10: 10 | G10: 462.0833333
B11: ABC-12 | C11: 2017-05-12 | D11: 10 | G11: 316.6666667
B12: ABC-14 | C12: 2017-08-01 | D12: 64 | G12: 375
B13: ABC-15 | C13: 2017-05-12 | D13: 10 | G13: 378.3333333
B14: ABC-16 | C14: 2017-10-17 | D14: 69 | G14: 404.1666667
B15: B-01 | C15: 2017-05-18 | D15: 54 | G15: 356.25
B16: unknown | C16: 2017-08-01 | D16: 150 | G16: 300
B17: ZXY-01 | C17: 2017-05-12 | D17: 10 | G17: 266.6666667
A18: * | B18: stock | C18: 2017-05-11 | D18: 79 | E18: 221 | F18: 1045.75 | G18: 3000
